bitfinex-derivatives/quotes_BTCF0:USTF0_20241109
["timestamp","ask_amount","ask_price","bid_price","bid_amount"]
[1731141653789,0.426002,76643.0,76642.0,0.17659146]
[1731141654287,0.065204,76640.0,76639.0,0.18954061]
[1731141654490,0.065204,76640.0,76639.0,0.1170969]
[1731141654687,0.065204,76640.0,76639.0,0.18954061]
[1731141654882,0.065204,76640.0,76639.0,0.22540188]
[1731141656293,0.373,76648.0,76644.0,0.065198]
[1731141656294,0.0652,76645.0,76644.0,0.065198]
[1731141656501,0.438198,76648.0,76647.0,0.065198]
[1731141656688,0.425998,76648.0,76647.0,0.065198]
[1731141660490,0.45046991,76648.0,76647.0,0.065198]
[1731141662593,0.425998,76648.0,76647.0,0.065198]
[1731141662899,0.57496413,76648.0,76647.0,0.03717774]
[1731141665389,0.5745822,76648.0,76647.0,0.03717774]
[1731141667584,0.5996181,76648.0,76647.0,0.03717774]
[1731141668790,0.5996181,76648.0,76643.0,0.13767705]
[1731141668791,0.0652,76644.0,76643.0,0.06523334]
[1731141668994,0.0652,76644.0,76642.0,0.065202]
[1731141668995,0.065201,76643.0,76642.0,0.065202]
[1731141669195,0.19205258,76643.0,76642.0,0.065202]
[1731141669992,0.0902369,76643.0,76642.0,0.25805733]
[1731141670392,0.0902369,76643.0,76642.0,0.19285533]
[1731141670600,0.09077751,76643.0,76642.0,0.19285533]
[1731141670805,0.15497751,76643.0,76642.0,0.19285533]
[1731141671599,0.15497751,76643.0,76642.0,0.15206772]
[1731141672696,0.15497751,76643.0,76642.0,0.04706408]
[1731141674599,0.22742122,76643.0,76642.0,0.15154445]
[1731141674902,0.22742122,76643.0,76642.0,0.10451696]
[1731141677291,0.15497751,76643.0,76642.0,0.10451696]
[1731141677499,0.22742122,76643.0,76642.0,0.10451696]
[1731141677798,0.065207,76636.0,76635.0,0.09111859]
[1731141678100,0.065211,76632.0,76631.0,0.06784932]
[1731141678294,0.065211,76632.0,76631.0,0.00195728]
[1731141678295,0.23988318,76632.0,76631.0,0.00195728]
[1731141679704,0.28603289,76632.0,76631.0,0.00195728]
[1731141680099,0.13765471,76632.0,76631.0,0.00195728]
[1731141681005,0.065211,76632.0,76631.0,0.00195728]
[1731141683012,0.16679407,76632.0,76631.0,0.00195728]
[1731141683600,0.065211,76632.0,76631.0,0.00195728]
[1731141686107,0.426011,76632.0,76631.0,0.22918168]
[1731141686307,0.31511701,76632.0,76631.0,0.42521286]
[1731141686517,0.31511701,76632.0,76631.0,0.33430008]
[1731141686814,0.38032801,76632.0,76631.0,0.42052631]
[1731141687406,0.38032801,76632.0,76631.0,0.63262998]
[1731141690816,0.38032801,76632.0,76631.0,0.51143909]
[1731141691012,0.38032801,76632.0,76631.0,0.28421469]
[1731141692209,0.48314504,76632.0,76625.0,0.07244371]
[1731141692411,0.065216,76626.0,76625.0,0.07244371]
[1731141692712,0.12799925,76626.0,76625.0,0.07244371]
[1731141694813,0.12799925,76626.0,76625.0,0.13765971]
[1731141696813,0.09426824,76626.0,76625.0,0.13765971]
[1731141698121,0.02905224,76626.0,76625.0,0.13765971]
[1731141700220,0.065215,76627.0,76626.0,0.065216]
[1731141700516,0.065215,76627.0,76626.0,0.25732456]
[1731141702628,0.31511701,76632.0,76626.0,0.51675382]
[1731141702923,0.065214,76628.0,76627.0,0.3134104]
[1731141703227,0.065214,76628.0,76627.0,0.19210856]
[1731141703825,0.065214,76628.0,76627.0,0.28314927]
[1731141704424,0.065214,76628.0,76627.0,0.40384907]
[1731141705021,0.065214,76628.0,76627.0,0.31280836]
[1731141706225,0.07244371,76629.0,76627.0,0.31280836]
[1731141706421,0.07244371,76629.0,76628.0,0.31280836]
[1731141706422,0.13765671,76629.0,76628.0,0.31280836]
[1731141707334,0.13765671,76629.0,76628.0,0.19210856]
[1731141709318,0.13765671,76629.0,76628.0,0.19058141]
[1731141714135,0.13765671,76629.0,76628.0,0.19061875]
[1731141715426,0.065217,76624.0,76623.0,0.1319194]
[1731141715729,0.09539281,76624.0,76623.0,0.1319194]
[1731141716229,0.13542536,76624.0,76623.0,0.1319194]
[1731141716432,0.1704609,76624.0,76623.0,0.1319194]
[1731141717222,0.17044128,76624.0,76623.0,0.1319194]
[1731141719032,0.065217,76624.0,76623.0,0.1319194]
[1731141719227,0.09537682,76624.0,76623.0,0.1319194]
[1731141719431,0.17042647,76624.0,76623.0,0.1319194]
[1731141722647,0.14326234,76627.0,76623.0,0.58014991]
[1731141722839,0.14326234,76627.0,76624.0,0.44823051]
[1731141723040,0.065216,76625.0,76623.0,0.0667024]
[1731141723341,0.065216,76625.0,76624.0,0.51388662]
[1731141726234,0.14326234,76627.0,76624.0,0.51388662]
[1731141726432,0.065216,76626.0,76625.0,0.56585954]
[1731141726635,0.065216,76626.0,76625.0,0.44866962]
[1731141728442,0.065216,76626.0,76625.0,0.31142519]
[1731141728838,0.065216,76626.0,76625.0,0.41560356]
[1731141729034,0.065216,76626.0,76625.0,0.31142519]
[1731141729843,0.065216,76626.0,76625.0,0.19089878]
[1731141730546,0.065224,76616.0,76615.0,0.15176954]
[1731141730934,0.10035085,76616.0,76615.0,0.15176954]
[1731141731139,0.065224,76616.0,76615.0,0.15176954]
[1731141731568,0.17064383,76616.0,76615.0,0.2174968]
[1731141731848,0.17064383,76616.0,76615.0,0.15176954]
[1731141731849,0.24308754,76616.0,76615.0,0.15176954]
[1731141732043,0.38653129,76616.0,76615.0,0.15176954]
[1731141732244,0.24308754,76616.0,76615.0,0.15176954]
[1731141732449,0.386476,76616.0,76615.0,0.15176954]
[1731141733040,0.05451201,76634.0,76615.0,0.15176954]
[1731141733041,0.065172,76677.0,76638.0,0.065205]
[1731141733248,0.07194911,76660.0,76659.0,0.065188]
[1731141733451,0.3608,76679.0,76666.0,0.065182]
[1731141733651,0.3608,76679.0,76668.0,0.065179]
[1731141733952,0.3608,76679.0,76671.0,0.07244371]
[1731141734137,0.3608,76679.0,76670.0,0.065178]
[1731141734138,0.0327,76693.0,76675.0,0.07244371]
[1731141734346,0.0327,76693.0,76682.0,0.07244371]
[1731141734347,0.09228,76687.0,76682.0,0.07244371]
[1731141734639,0.13760571,76690.0,76682.0,0.07244371]
[1731141734640,0.09228,76686.0,76682.0,0.07244371]
[1731141735043,0.16472371,76686.0,76678.0,0.07244371]
[1731141735441,0.09228,76686.0,76675.0,0.065173]
[1731141735637,0.09228,76686.0,76677.0,0.065172]
[1731141736351,0.09228,76686.0,76678.0,0.065171]
[1731141736538,0.09228,76686.0,76674.0,0.3608]
[1731141736741,0.09228,76686.0,76679.0,0.06517]
[1731141737145,0.17783104,76690.0,76674.0,0.3608]
[1731141737343,0.09352,76687.0,76682.0,0.065168]
[1731141737742,0.11266904,76685.0,76674.0,0.3608]
[1731141737944,0.11266904,76679.0,76674.0,0.425975]
[1731141738748,0.11266904,76679.0,76674.0,0.3608]
[1731141738948,0.11266904,76679.0,76675.0,0.065174]
[1731141739253,0.11266904,76679.0,76677.0,0.065172]
[1731141740146,0.065166,76684.0,76679.0,0.06517]
[1731141740346,0.065166,76684.0,76680.0,0.06517]
[1731141742353,0.065166,76684.0,76674.0,0.3608]
[1731141742354,0.065166,76684.0,76681.0,0.065169]
[1731141743151,0.065167,76683.0,76681.0,0.065169]
[1731141743347,0.065168,76682.0,76677.0,0.065172]
[1731141743745,0.065168,76682.0,76678.0,0.065171]
[1731141745255,0.065168,76682.0,76679.0,0.06517]
[1731141745453,0.45790385,76681.0,76674.0,0.28248833]
[1731141745654,0.14217907,76678.0,76677.0,0.065172]
[1731141745852,0.16735663,76678.0,76677.0,0.065172]
[1731141746050,0.09710385,76678.0,76677.0,0.065172]
[1731141746450,0.07192629,76678.0,76677.0,0.065172]
[1731141749753,0.13709729,76678.0,76677.0,0.065172]
[1731141752572,0.14217907,76680.0,76677.0,0.065172]
[1731141753782,0.065173,76676.0,76675.0,0.06518505]
[1731141754082,0.065173,76676.0,76675.0,0.065174]
[1731141755483,0.065173,76676.0,76675.0,0.13750685]
[1731141756283,0.065173,76676.0,76675.0,0.17654683]
[1731141757687,0.065173,76676.0,76675.0,0.13750685]
[1731141761583,0.09035055,76676.0,76675.0,0.13750685]
[1731141761887,0.065173,76676.0,76675.0,0.13750685]
[1731141762292,0.12226906,76676.0,76675.0,0.13750685]
[1731141764196,0.0061,76682.0,76681.0,0.065169]
[1731141764493,0.00195656,76692.0,76685.0,0.065165]
[1731141764494,0.0061,76686.0,76685.0,0.065165]
[1731141764678,0.03191478,76689.0,76685.0,0.07233285]
[1731141764987,0.03191478,76688.0,76687.0,0.065164]
[1731141766293,0.09707778,76688.0,76687.0,0.13749685]
[1731141766791,0.09707778,76688.0,76687.0,0.065164]
[1731141767187,0.065166,76684.0,76683.0,0.065165]
[1731141767691,0.0061,76688.0,76683.0,0.3619757]
[1731141767890,0.07843285,76688.0,76684.0,0.22020771]
[1731141768194,0.065165,76686.0,76685.0,0.22020771]
[1731141769883,0.065165,76686.0,76685.0,0.22021525]
[1731141771994,0.065165,76686.0,76685.0,0.28538025]
[1731141772191,0.065165,76686.0,76685.0,0.2925481]
[1731141772388,0.065165,76686.0,76685.0,0.3577131]
[1731141774987,0.065165,76686.0,76685.0,0.22021525]
[1731141775491,0.065165,76686.0,76685.0,0.09932267]
[1731141776297,0.065165,76686.0,76685.0,0.17721331]
[1731141777189,0.065165,76686.0,76685.0,0.09932267]
[1731141777385,0.065165,76686.0,76685.0,0.09932242]
[1731141779199,0.425965,76686.0,76685.0,0.09932242]
[1731141779395,0.425965,76686.0,76682.0,0.07789064]
[1731141779692,0.065166,76684.0,76683.0,0.09932344]
[1731141780992,0.07233285,76684.0,76682.0,0.01503265]
[1731141781192,0.52949985,76683.0,76682.0,0.01503265]
[1731141781494,0.065171,76679.0,76678.0,0.0061]
[1731141781694,0.13750385,76679.0,76678.0,0.09933635]
[1731141782593,0.25965169,76679.0,76673.0,0.0061]
[1731141782789,0.49830785,76674.0,76673.0,0.0061]
[1731141783007,0.49830785,76674.0,76672.0,0.0061]
[1731141783008,0.065179,76669.0,76668.0,0.0061]
[1731141783207,0.065181,76668.0,76665.0,0.1675185]
[1731141783504,0.12228153,76667.0,76666.0,0.065182]
[1731141784201,0.05710053,76667.0,76666.0,0.13751485]
[1731141785299,0.05710053,76667.0,76666.0,0.17786698]
[1731141789101,0.02517951,76667.0,76666.0,0.17786698]
[1731141789399,0.05709852,76667.0,76666.0,0.11268498]
[1731141789604,0.05709852,76667.0,76666.0,0.17786698]
[1731141790598,0.0061,76673.0,76666.0,0.63498125]
[1731141790799,0.41889319,76683.0,76682.0,0.065168]
[1731141790999,0.41889319,76683.0,76682.0,0.42664011]
[1731141792398,0.41889319,76683.0,76682.0,0.28478469]
[1731141792598,0.35372619,76683.0,76682.0,0.28478469]
[1731141792996,0.35372619,76683.0,76682.0,0.28480379]
[1731141793310,0.35372619,76683.0,76682.0,0.42449119]
[1731141795703,0.065165,76686.0,76685.0,0.065165]
[1731141795908,0.065165,76686.0,76685.0,0.42448819]
[1731141796313,0.3608,76691.0,76689.0,0.065162]
[1731141796507,0.3608,76691.0,76689.0,0.42448519]
[1731141797510,0.33015127,76691.0,76689.0,0.42448519]
[1731141797710,0.065161,76690.0,76689.0,0.065162]
[1731141797911,0.065161,76690.0,76689.0,0.28412194]
[1731141800521,0.065161,76690.0,76689.0,0.16447733]
[1731141802106,0.065161,76690.0,76689.0,0.28411268]
[1731141805721,0.2089946,76690.0,76689.0,0.065162]
[1731141806627,0.35212668,76690.0,76689.0,0.065162]
[1731141809215,0.2089946,76690.0,76689.0,0.065162]
[1731141809422,0.16225204,76690.0,76689.0,0.065162]
[1731141810124,0.16225204,76690.0,76689.0,0.13747989]
[1731141811929,0.20899417,76690.0,76689.0,0.13747989]
[1731141812330,0.16225204,76690.0,76689.0,0.13747989]
[1731141813042,0.065161,76690.0,76689.0,0.35643061]
[1731141816737,0.065161,76690.0,76689.0,0.21895072]
[1731141816938,0.07231789,76691.0,76689.0,0.21895072]
[1731141817130,0.065165,76686.0,76685.0,0.09696195]
[1731141817335,0.07231789,76686.0,76685.0,0.21907257]
[1731141817535,0.13748289,76686.0,76685.0,0.21907257]
[1731141818532,0.065161,76690.0,76685.0,0.21907257]
[1731141818533,0.0061,76698.0,76685.0,0.2183973]
[1731141818735,0.1,76700.0,76693.0,0.45169071]
[1731141818941,0.1,76700.0,76695.0,0.09089071]
[1731141819141,0.1,76700.0,76699.0,0.07231789]
[1731141819436,0.1,76700.0,76699.0,0.29071519]
[1731141819625,0.1,76700.0,76699.0,0.35586919]
[1731141819831,0.26829977,76700.0,76699.0,0.13747189]
[1731141820141,0.34020614,76700.0,76699.0,0.13747189]
[1731141820635,0.19707696,76700.0,76699.0,0.065154]
[1731141821034,0.19707696,76700.0,76695.0,0.07231789]
[1731141821035,0.065154,76699.0,76695.0,0.07231789]
[1731141821236,0.09707696,76698.0,76695.0,0.07231789]
[1731141821531,0.09707696,76697.0,76694.0,0.065158]
[1731141821723,0.0570803,76696.0,76694.0,0.065158]
[1731141821922,0.065155,76698.0,76694.0,0.065158]
[1731141821923,0.0570803,76695.0,76694.0,0.065158]
[1731141822126,0.1222353,76697.0,76694.0,0.065158]
[1731141822323,0.0570803,76696.0,76694.0,0.065158]
[1731141822536,0.12939819,76696.0,76693.0,0.3608]
[1731141822838,0.12939819,76696.0,76692.0,0.0061]
[1731141822839,0.065159,76693.0,76692.0,0.07841789]
[1731141823134,0.1622392,76693.0,76692.0,0.07231789]
[1731141825034,0.065159,76692.0,76691.0,0.06516]
[1731141825336,0.1622392,76692.0,76691.0,0.06516]
[1731141828037,0.10331789,76696.0,76691.0,0.28355011]
[1731141828336,0.16847389,76696.0,76695.0,0.07788573]
[1731141828541,0.16847389,76696.0,76695.0,0.17719488]
[1731141828744,0.065156,76696.0,76695.0,0.16446615]
[1731141829843,0.065156,76696.0,76695.0,0.24235188]
[1731141830534,0.065156,76696.0,76695.0,0.16446615]
[1731141831936,0.065156,76696.0,76695.0,0.09930915]
[1731141835140,0.065156,76696.0,76694.0,0.07231789]
[1731141835141,0.065157,76695.0,76694.0,0.07231789]
[1731141835346,0.16223933,76695.0,76694.0,0.07231789]
[1731141838242,0.065162,76689.0,76688.0,0.0061]
[1731141838443,0.065162,76689.0,76681.0,0.0951639]
[1731141838444,0.065165,76685.0,76684.0,0.0061]
[1731141838746,0.065169,76681.0,76680.0,0.0061]
[1731141838944,0.059069,76681.0,76680.0,0.07231789]
[1731141840249,0.065171,76678.0,76677.0,0.065172]
[1731141840453,0.065171,76678.0,76677.0,0.13748989]
[1731141840844,0.065171,76678.0,76677.0,0.07231789]
[1731141841340,0.065172,76677.0,76676.0,0.42785697]
[1731141841547,0.065172,76677.0,76676.0,0.42689697]
[1731141842050,0.065172,76677.0,76676.0,0.45689066]
[1731141842450,0.065172,76677.0,76676.0,0.52920855]
[1731141842843,0.065172,76677.0,76676.0,0.66669944]
[1731141843654,0.065172,76677.0,76676.0,0.59438155]
[1731141844652,0.065172,76677.0,76676.0,0.95072836]
[1731141844653,0.02604271,76677.0,76676.0,0.95072836]
[1731141844950,0.3926,76689.0,76676.0,0.95072836]
[1731141845146,0.065163,76688.0,76687.0,0.07231789]
[1731141846749,0.065166,76684.0,76683.0,0.07231789]
[1731141849651,0.065166,76684.0,76683.0,0.17164109]
[1731141849859,0.03255837,76684.0,76683.0,0.29017205]
[1731141850153,0.12965677,76684.0,76683.0,0.07231789]
[1731141852163,0.12965677,76684.0,76677.0,0.0061]
[1731141852358,0.065168,76682.0,76681.0,0.07231789]
[1731141852550,0.1622664,76682.0,76681.0,0.07231789]
[1731141853351,0.065171,76678.0,76677.0,0.0061]
[1731141853553,0.065172,76677.0,76676.0,0.06609697]
[1731141853755,0.09710367,76677.0,76675.0,0.07841789]
[1731141853948,0.16227724,76676.0,76675.0,0.07841789]
[1731141854155,0.22477724,76676.0,76675.0,0.07231789]
[1731141855464,0.18476591,76676.0,76675.0,0.07231789]
[1731141856459,0.22477763,76676.0,76675.0,0.07231789]
[1731141856962,0.065175,76674.0,76673.0,0.00805605]
[1731141857259,0.1945858,76674.0,76673.0,0.00805605]
[1731141857462,0.23459768,76674.0,76673.0,0.00805605]
[1731141858068,0.16227979,76674.0,76673.0,0.0061]
[1731141858252,0.07231789,76674.0,76673.0,0.10544685]
[1731141858653,0.065175,76674.0,76673.0,0.10544685]
[1731141858857,0.065175,76674.0,76673.0,0.22472365]
[1731141859068,0.065175,76674.0,76673.0,0.29704154]
[1731141859560,0.42398,76676.0,76673.0,0.52556152]
[1731141859561,0.36148,76676.0,76673.0,0.52556152]
[1731141859768,0.065174,76675.0,76674.0,0.21862365]
[1731141860062,0.345974,76676.0,76674.0,0.44707924]
[1731141860262,0.411147,76676.0,76675.0,0.21862365]
[1731141864551,0.411147,76676.0,76675.0,0.21748445]
[1731141864754,0.37201299,76676.0,76675.0,0.21748445]
[1731141865154,0.30683999,76676.0,76673.0,0.14329757]
[1731141865358,0.065175,76674.0,76673.0,0.14329757]
[1731141865556,0.065175,76674.0,76673.0,0.17735799]
[1731141867670,0.065175,76674.0,76673.0,0.1050401]
[1731141869570,0.065175,76674.0,76673.0,0.10518274]
[1731141870964,0.37201299,76676.0,76675.0,0.065174]
[1731141871167,0.37201299,76676.0,76675.0,0.23657463]
[1731141872070,0.37201299,76676.0,76675.0,0.17140063]
[1731141873169,0.46912136,76676.0,76675.0,0.07231789]
[1731141873463,0.42911176,76676.0,76675.0,0.07231789]
[1731141873966,0.42911176,76676.0,76675.0,0.13749189]
[1731141874961,0.42911176,76676.0,76675.0,0.07231789]
[1731141876866,0.42911176,76676.0,76675.0,0.13749189]
[1731141877359,0.12227177,76676.0,76675.0,0.13749189]
[1731141878673,0.12227147,76676.0,76675.0,0.13749189]
[1731141879558,0.05709847,76676.0,76673.0,0.0061]
[1731141879758,0.065175,76674.0,76673.0,0.0061]
[1731141879969,0.12227347,76674.0,76673.0,0.071276]
[1731141880365,0.065175,76674.0,76673.0,0.28838476]
[1731141887491,0.065175,76674.0,76673.0,0.17033082]
[1731141888084,0.0061,76680.0,76673.0,0.10515482]
[1731141888278,0.0061,76680.0,76678.0,0.21551891]
[1731141888279,0.065172,76679.0,76678.0,0.21551891]
[1731141888482,0.065172,76679.0,76678.0,0.31457373]
[1731141888882,0.065172,76679.0,76678.0,0.23653825]
[1731141889084,0.065172,76679.0,76678.0,0.31458033]
[1731141889290,0.0061,76680.0,76679.0,0.065171]
[1731141889486,0.0061,76680.0,76679.0,0.28225592]
[1731141890085,0.0061,76680.0,76679.0,0.35457381]
[1731141891184,0.065166,76685.0,76684.0,0.065166]
[1731141891383,0.065166,76685.0,76684.0,0.23653325]
[1731141892387,0.065166,76685.0,76684.0,0.3145001]
[1731141893687,0.065166,76685.0,76684.0,0.23653325]
[1731141894785,0.03255889,76685.0,76684.0,0.23653325]
[1731141895284,0.03255889,76685.0,76684.0,0.13748389]
[1731141895490,0.12965574,76685.0,76684.0,0.10281038]
[1731141898290,0.03255889,76685.0,76684.0,0.10281038]
[1731141898493,0.08965063,76685.0,76684.0,0.10281038]
[1731141899296,0.1296553,76685.0,76684.0,0.10281038]
[1731141902798,0.10447967,76685.0,76684.0,0.10281038]
[1731141903600,0.07256356,76685.0,76684.0,0.10281038]
[1731141904305,0.03255889,76685.0,76684.0,0.10281038]
[1731141909306,0.03255889,76685.0,76684.0,0.31848887]
[1731141910704,0.03255889,76685.0,76684.0,0.22009368]
[1731141910902,0.03255889,76685.0,76684.0,0.1172833]
[1731141911702,0.03255889,76685.0,76684.0,0.1824493]
[1731141913203,0.03255889,76685.0,76684.0,0.1172833]
[1731141914312,0.02517629,76686.0,76683.0,0.065167]
[1731141914494,0.065166,76684.0,76683.0,0.065167]
[1731141914805,0.1222592,76684.0,76683.0,0.13748489]
[1731141917101,0.1222592,76684.0,76683.0,0.07231789]
[1731141917305,0.1222592,76684.0,76683.0,0.13748489]
[1731141917606,0.1222592,76684.0,76683.0,0.065167]
[1731141918602,0.065166,76684.0,76683.0,0.28171563]
[1731141921203,0.3608,76687.0,76683.0,0.28171563]
[1731141921404,0.3608,76687.0,76686.0,0.07231789]
[1731141921605,0.45304,76692.0,76686.0,0.28900113]
[1731141921907,0.45304,76692.0,76687.0,0.21668324]
[1731141922112,0.45304,76692.0,76688.0,0.21668324]
[1731141922312,0.45304,76692.0,76689.0,0.21668324]
[1731141922502,0.06516,76691.0,76690.0,0.21668324]
[1731141923607,0.06516,76691.0,76690.0,0.09885357]
[1731141925714,0.06516,76691.0,76686.0,0.07841789]
[1731141925715,0.065164,76687.0,76686.0,0.07841789]
[1731141926012,0.16226115,76687.0,76686.0,0.07841789]
[1731141926515,0.16226116,76687.0,76686.0,0.07841789]
[1731141927816,0.09709716,76687.0,76686.0,0.0061]
[1731141928006,0.09709716,76687.0,76686.0,0.14358289]
[1731141929910,0.16226116,76687.0,76686.0,0.14358289]
[1731141932117,0.16226116,76687.0,76686.0,0.50438289]
[1731141932507,0.09709716,76687.0,76686.0,0.50438289]
[1731141933009,0.16852138,76687.0,76686.0,0.50438289]
[1731141933411,0.24044271,76687.0,76686.0,0.50438289]
[1731141933612,0.065162,76690.0,76686.0,0.65527457]
[1731141933816,0.14334555,76692.0,76689.0,0.065162]
[1731141934019,0.14334555,76692.0,76691.0,0.07231789]
[1731141934212,0.20850455,76692.0,76691.0,0.48983864]
[1731141934414,0.14334555,76692.0,76691.0,0.28121668]
[1731141934721,0.14334555,76692.0,76691.0,0.42528265]
[1731141936316,0.14334555,76692.0,76691.0,0.28064687]
[1731141936521,0.14334555,76692.0,76691.0,0.42528265]
[1731141936719,0.14334555,76692.0,76691.0,0.56042281]
[1731141937028,0.14334555,76692.0,76691.0,0.66431686]
[1731141937819,0.065157,76695.0,76691.0,0.59915686]
[1731141938023,0.065157,76695.0,76694.0,0.13747589]
[1731141938225,0.065157,76695.0,76694.0,0.48810292]
[1731141938627,0.065157,76695.0,76694.0,0.35296276]
[1731141939721,0.03255519,76695.0,76694.0,0.35296276]
[1731141940724,0.03255519,76695.0,76694.0,0.23578366]
[1731141941124,0.03255519,76695.0,76694.0,0.30098142]
[1731141944031,0.00068,76713.0,76709.0,0.065145]
[1731141944230,0.065125,76733.0,76695.0,0.39112]
[1731141944231,0.065131,76726.0,76723.0,0.065133]
[1731141944428,0.3608,76731.0,76727.0,0.065129]
[1731141944624,0.3608,76731.0,76726.0,0.07231789]
[1731141944625,0.065128,76729.0,76726.0,0.07231789]
[1731141944833,0.065128,76729.0,76727.0,0.05185844]
[1731141945635,0.065128,76729.0,76726.0,0.13744789]
[1731141945836,0.3608,76731.0,76727.0,0.065129]
[1731141946038,0.3608,76731.0,76730.0,0.07231789]
[1731141946634,0.3608,76731.0,76730.0,0.11112454]
[1731141947131,0.3608,76731.0,76730.0,0.03880665]
[1731141947434,0.3608,76731.0,76730.0,0.11112454]
[1731141947635,0.425926,76731.0,76730.0,0.07231789]
[1731141948634,0.56969402,76731.0,76730.0,0.0520435]
[1731141950060,0.50456802,76731.0,76727.0,0.065129]
[1731141950229,0.065129,76728.0,76727.0,0.065129]
[1731141950438,0.16217577,76728.0,76727.0,0.13744689]
[1731141950732,0.16217577,76728.0,76727.0,0.03434281]
[1731141952933,0.16217577,76728.0,76725.0,0.065131]
[1731141953140,0.16217577,76728.0,76725.0,0.20976678]
[1731141953141,0.09704677,76727.0,76725.0,0.20976678]
[1731141953335,0.09704677,76726.0,76725.0,0.20976678]
[1731141954438,0.09704677,76726.0,76725.0,0.14463578]
[1731141954835,0.09704677,76726.0,76725.0,0.20976678]
[1731141955443,0.16217777,76726.0,76725.0,0.20976678]
[1731141955745,0.065131,76726.0,76725.0,0.20976678]
[1731141956247,0.065133,76723.0,76720.0,0.065136]
[1731141956447,0.065133,76723.0,76722.0,0.07231789]
[1731141956845,0.065133,76723.0,76722.0,0.14463578]
[1731141958249,0.065134,76722.0,76721.0,0.02998125]
[1731141959442,0.065134,76722.0,76721.0,0.09511625]
[1731141960041,0.065134,76722.0,76721.0,0.45591625]
[1731141960239,0.065134,76722.0,76721.0,0.39078125]
[1731141960541,0.065134,76722.0,76721.0,0.46309914]
[1731141962141,0.065134,76722.0,76721.0,0.39078125]
[1731141962342,0.065134,76722.0,76721.0,0.46309914]
[1731141962742,0.12219673,76722.0,76721.0,0.46309914]
[1731141962942,0.16218108,76722.0,76721.0,0.46309914]
[1731141963844,0.16218108,76722.0,76721.0,0.53541703]
[1731141964039,0.16218108,76722.0,76721.0,0.39078125]
[1731141964240,0.16218108,76722.0,76721.0,0.53541703]
[1731141964740,0.16218108,76722.0,76721.0,0.46309914]
[1731141964948,0.16218108,76722.0,76721.0,0.31970272]
[1731141965258,0.16218108,76722.0,76721.0,0.24738483]
[1731141965756,0.16218108,76722.0,76721.0,0.31970272]
[1731141966651,0.16218108,76722.0,76721.0,0.07231789]
[1731141967152,0.16218108,76722.0,76721.0,0.14463578]
[1731141967452,0.16218033,76722.0,76721.0,0.14463578]
[1731141967643,0.065134,76722.0,76721.0,0.14463578]
[1731141973347,0.065134,76722.0,76721.0,0.15261534]
[1731141974644,0.065134,76722.0,76721.0,0.32141885]
[1731141974842,0.065134,76722.0,76721.0,0.32939929]
[1731141975248,0.065134,76722.0,76721.0,0.32141885]
[1731141977051,0.065134,76722.0,76721.0,0.17678307]
[1731141977250,0.065134,76722.0,76721.0,0.32141885]
[1731141978659,0.16217938,76722.0,76721.0,0.07231789]
[1731141978864,0.065135,76721.0,76720.0,0.02998123]
[1731141979173,0.16218038,76721.0,76720.0,0.02998123]
[1731141979855,0.16218038,76721.0,76720.0,0.09511723]
[1731141980358,0.09704538,76721.0,76720.0,0.23975301]
[1731141980552,0.04672066,76725.0,76720.0,0.56565701]
[1731141980753,0.04672066,76725.0,76724.0,0.20976778]
[1731141981859,0.11185166,76725.0,76724.0,0.20976778]
[1731141982047,0.04672066,76725.0,76724.0,0.14463578]
[1731141982252,0.11185166,76725.0,76724.0,0.14463578]
[1731141983259,0.11185166,76725.0,76724.0,0.20976778]
[1731141984564,0.04671908,76725.0,76724.0,0.20976778]
[1731141984750,0.065128,76729.0,76728.0,0.065129]
[1731141985054,0.065128,76729.0,76728.0,0.13744689]
[1731141985460,0.10510657,76729.0,76728.0,0.13744689]
[1731141985650,0.065128,76729.0,76728.0,0.49121158]
[1731141985850,0.065128,76730.0,76729.0,0.065128]
[1731141986055,0.065128,76730.0,76729.0,0.49121058]
[1731141986454,0.065128,76730.0,76729.0,0.35509125]
[1731141987761,0.065128,76730.0,76729.0,0.21764536]
[1731141988261,0.065128,76730.0,76729.0,0.35657028]
[1731141989652,0.065128,76730.0,76729.0,0.23818089]
[1731141989858,0.065128,76730.0,76729.0,0.09925597]
[1731141990064,0.065128,76730.0,76729.0,0.17157386]
[1731141993761,0.09704222,76730.0,76727.0,0.0638162]
[1731141993963,0.065129,76728.0,76727.0,0.0638162]
[1731141994161,0.065129,76728.0,76725.0,0.20112141]
[1731141994162,0.065131,76726.0,76725.0,0.20112141]
[1731141994363,0.16217322,76726.0,76725.0,0.20112141]
[1731141994969,0.16217322,76726.0,76725.0,0.2734393]
[1731141996263,0.16217322,76726.0,76725.0,0.20112141]
[1731141996771,0.16217322,76726.0,76725.0,0.13599041]
[1731141997264,0.16217322,76726.0,76725.0,0.20112141]
[1731141999574,0.16217322,76726.0,76725.0,0.2734393]
[1731142000777,0.065131,76726.0,76725.0,0.37270025]
[1731142001574,0.065128,76729.0,76728.0,0.065129]
[1731142001779,0.065128,76729.0,76728.0,0.16438995]
[1731142003667,0.065128,76729.0,76728.0,0.23670784]
[1731142005476,0.065128,76729.0,76728.0,0.23670747]
[1731142006064,0.065128,76729.0,76728.0,0.16438958]
[1731142008071,0.065128,76729.0,76728.0,0.17239478]
[1731142008678,0.065124,76734.0,76733.0,0.065124]
[1731142008885,0.065124,76734.0,76733.0,0.20233606]
[1731142009186,0.0305,76740.0,76733.0,0.17157521]
[1731142009387,0.127221,76737.0,76735.0,0.06488398]
[1731142009573,0.065122,76736.0,76735.0,0.06488398]
[1731142009773,0.065122,76736.0,76735.0,0.23726745]
[1731142009979,0.065122,76736.0,76735.0,0.24470136]
[1731142010284,0.065122,76736.0,76735.0,0.23669473]
[1731142010589,0.065122,76736.0,76735.0,0.23669424]
[1731142011986,0.065122,76736.0,76735.0,0.17247508]
[1731142012185,0.065122,76736.0,76735.0,0.24479297]
[1731142012484,0.065122,76736.0,76735.0,0.30262378]
[1731142012684,0.065122,76736.0,76735.0,0.23030589]
[1731142012885,0.065122,76736.0,76735.0,0.30262378]
[1731142014676,0.065122,76736.0,76735.0,0.16518289]
[1731142014975,0.065122,76736.0,76735.0,0.20309118]
[1731142015175,0.065122,76736.0,76735.0,0.13824743]
[1731142015570,0.06516436,76736.0,76735.0,0.13824743]
[1731142015880,0.26544236,76736.0,76735.0,0.13824743]
[1731142016184,0.16220021,76736.0,76735.0,0.13824743]
[1731142017279,0.09707821,76736.0,76733.0,0.3608]
[1731142017482,0.09703585,76735.0,76734.0,0.065124]
[1731142018682,0.09703585,76735.0,76734.0,0.20975978]